bitfinex/quotes_SOLUSD_20250108
["timestamp","ask_amount","ask_price","bid_price","bid_amount"]
[1736314318104,0.9387,197.92,197.81,15.32913995]
[1736314318287,2.46,197.91,197.81,15.32913995]
[1736314318688,0.12549,197.9,197.83,15.32913995]
[1736314319404,2.5191,197.93,197.85,15.32913995]
[1736314319605,2.46,197.92,197.85,15.32913995]
[1736314319998,0.12549,197.91,197.85,15.32913995]
[1736314322007,0.12549,197.92,197.85,15.32913995]
[1736314322194,0.12549,197.9,197.84,15.32913995]
[1736314323390,0.12549,197.9,197.85,15.32913995]
[1736314323584,0.12549,197.9,197.86,15.32913995]
[1736314324507,0.12549,197.9,197.8,15.32913995]
[1736314324508,0.12549,197.9,197.85,15.32913995]
[1736314325604,0.12549,197.9,197.82,15.32913995]
[1736314325922,0.12549,197.88,197.8,15.32913995]
[1736314326410,0.12549,197.9,197.81,15.32913995]
[1736314327012,2.46,197.91,197.84,15.32913995]
[1736314327316,30.0,197.95,197.87,15.32913995]
[1736314327618,2.56,197.94,197.87,15.32913995]
[1736314327795,0.12549,197.91,197.87,15.32913995]
[1736314327995,0.12549,197.91,197.86,15.32913995]
[1736314329121,0.12549,197.91,197.85,15.32913995]
[1736314329410,83.12549,197.91,197.83,15.32913995]
[1736314329590,0.12549,197.89,197.81,15.32913995]
[1736314330116,0.12549,197.89,197.82,15.32913995]
[1736314330298,0.12549,197.89,197.84,15.32913995]
[1736314331297,0.12549,197.89,197.85,15.32913995]
[1736314331498,2.56,197.88,197.85,15.32913995]
[1736314331697,2.56,197.88,197.87,15.32913995]
[1736314332194,0.12549,197.87,197.86,15.32913995]
[1736314332394,0.12549,197.87,197.85,15.32913995]
[1736314332588,0.12549,197.87,197.84,15.32913995]
[1736314332795,0.12549,197.87,197.82,15.32913995]
[1736314333190,0.12549,197.87,197.83,15.32913995]
[1736314333918,0.12549,197.87,197.82,15.32913995]
[1736314334794,0.12549,197.87,197.8,15.32913995]
[1736314335119,0.12549,197.87,197.79,15.32913995]
[1736314336011,0.12549,197.87,197.75,7.7485]
[1736314336012,0.12549,197.85,197.78,15.32913995]
[1736314336220,0.12549,197.85,197.76,15.32913995]
[1736314336415,0.12549,197.85,197.75,15.32913995]
[1736314336714,0.12549,197.82,197.75,15.32913995]
[1736314336912,0.12549,197.8,197.75,15.32913995]
[1736314337707,0.12549,197.8,197.74,15.32913995]
[1736314338320,0.12549,197.8,197.75,15.32913995]
[1736314339935,0.12549,197.8,197.7,6.1361]
[1736314339936,0.12549,197.78,197.7,6.1361]
[1736314340232,0.12549,197.76,197.68,15.32913995]
[1736314340402,0.12549,197.76,197.67,15.32913995]
[1736314341229,0.12549,197.76,197.68,15.32913995]
[1736314341435,0.12549,197.76,197.69,15.32913995]
[1736314342008,0.12549,197.76,197.68,15.32913995]
[1736314344032,30.12549,197.76,197.67,15.32913995]
[1736314344332,0.12549,197.74,197.67,15.32913995]
[1736314344499,0.12549,197.72,197.65,15.32913995]
[1736314344700,0.12549,197.72,197.63,15.32913995]
[1736314344919,0.12549,197.69,197.62,15.32913995]
[1736314345123,0.12549,197.69,197.6,15.32913995]
[1736314345535,30.12549,197.69,197.6,15.32913995]
[1736314346032,30.12549,197.69,197.61,15.32913995]
[1736314346196,30.12549,197.69,197.56,6.246]
[1736314346197,2.56,197.68,197.63,15.32913995]
[1736314346620,0.12549,197.67,197.63,15.32913995]
[1736314348832,0.12549,197.67,197.64,15.32913995]
[1736314349038,2.56,197.68,197.65,15.32913995]
[1736314349246,2.56,197.68,197.66,15.32913995]
[1736314349535,2.56,197.69,197.66,15.32913995]
[1736314349941,0.12549,197.68,197.65,15.32913995]
[1736314350316,0.12549,197.68,197.64,15.32913995]
[1736314352127,0.12549,197.68,197.62,15.32913995]
[1736314352331,0.12549,197.68,197.61,15.32913995]
[1736314354410,0.12549,197.68,197.63,15.32913995]
[1736314354617,0.12549,197.68,197.66,15.32913995]
[1736314354816,0.12549,197.68,197.65,15.32913995]
[1736314355342,0.12549,197.68,197.66,15.32913995]
[1736314355720,0.12549,197.68,197.65,15.32913995]
[1736314356941,0.12549,197.68,197.66,15.32913995]
[1736314358047,0.12549,197.68,197.65,15.32913995]
[1736314358216,0.12549,197.68,197.64,35.32913995]
[1736314359548,0.12549,197.68,197.63,15.32913995]
[1736314360319,0.12549,197.68,197.62,15.32913995]
[1736314360520,0.12549,197.68,197.57,0.75886443]
[1736314360725,113.12549,197.68,197.56,6.246]
[1736314360924,0.12549,197.66,197.55,15.32913995]
[1736314361227,30.12549,197.66,197.55,15.32913995]
[1736314361836,2.48,197.65,197.59,15.32913995]
[1736314362030,83.0,197.69,197.62,15.32913995]
[1736314362235,2.48,197.68,197.64,15.32913995]
[1736314362451,2.48,197.68,197.65,15.32913995]
[1736314362849,0.9387,197.73,197.66,15.32913995]
[1736314363044,2.48,197.72,197.66,15.32913995]
[1736314363342,0.12549,197.71,197.66,15.32913995]
[1736314363735,0.12549,197.71,197.64,15.32913995]
[1736314363950,0.12549,197.71,197.63,15.32913995]
[1736314366636,30.12549,197.71,197.63,15.32913995]
[1736314367352,83.0,197.7,197.64,15.32913995]
[1736314367534,0.12549,197.69,197.64,15.32913995]
[1736314368051,0.12549,197.69,197.65,15.32913995]
[1736314368250,2.5191,197.75,197.66,15.32913995]
[1736314368251,2.48,197.68,197.66,15.32913995]
[1736314368456,0.12549,197.67,197.65,15.32913995]
[1736314372146,2.48,197.68,197.65,15.32913995]
[1736314372349,0.12549,197.67,197.65,15.32913995]
[1736314377051,2.48,197.68,197.65,15.32913995]
[1736314377354,0.12549,197.69,197.67,9.83886572]
[1736314377549,83.0,197.75,197.71,20.0]
[1736314377735,2.48,197.76,197.74,9.83886572]
[1736314378058,32.5191,197.85,197.75,9.83886572]
[1736314378059,83.0,197.85,197.75,9.83886572]
[1736314378348,30.0,197.87,197.77,9.83886572]
[1736314378349,83.0,197.86,197.77,9.83886572]
[1736314378551,83.0,197.86,197.79,9.83886572]
[1736314378742,83.0,197.86,197.73,8.86305201]
[1736314378743,2.48,197.85,197.8,9.83886572]
[1736314378962,75.56,197.91,197.8,9.83886572]
[1736314378963,2.48,197.84,197.8,9.83886572]
[1736314379268,2.48,197.84,197.77,20.0]
[1736314379436,0.12549,197.83,197.8,15.35521966]
[1736314379628,0.12549,197.83,197.77,15.35521966]
[1736314379957,0.12549,197.83,197.76,35.35521966]
[1736314380341,0.12549,197.83,197.78,15.35521966]
[1736314380753,0.12549,197.83,197.77,15.35521966]
[1736314381135,83.12549,197.83,197.73,15.35521966]
[1736314381729,0.12549,197.81,197.73,15.35521966]
[1736314381935,0.12549,197.81,197.72,15.35521966]
[1736314382148,0.12549,197.81,197.73,15.35521966]
[1736314382551,0.12549,197.79,197.72,15.35521966]
[1736314382739,0.12549,197.77,197.7,15.35521966]
[1736314382943,83.0,197.78,197.7,15.35521966]
[1736314382944,0.12549,197.75,197.7,15.35521966]
[1736314385150,0.12549,197.75,197.67,15.35521966]
[1736314385539,0.12549,197.75,197.66,15.35521966]
[1736314385858,0.12549,197.73,197.64,15.35521966]
[1736314386247,0.12549,197.71,197.63,15.35521966]
[1736314387133,0.12549,197.71,197.59,8.143]
[1736314387134,0.12549,197.71,197.64,15.35521966]
[1736314388450,0.12549,197.71,197.59,8.143]
[1736314388451,0.12549,197.71,197.65,15.35521966]
[1736314391667,0.12549,197.71,197.64,15.35521966]
[1736314391962,0.12549,197.71,197.63,15.35521966]
[1736314392966,0.12549,197.69,197.64,15.35521966]
[1736314393152,0.12549,197.67,197.64,15.35521966]
[1736314396656,2.46,197.66,197.65,15.35521966]
[1736314396855,2.58549,197.66,197.64,15.35521966]
[1736314397058,0.12549,197.65,197.64,15.35521966]
[1736314397252,0.12549,197.65,197.63,15.35521966]
[1736314397768,0.12549,197.65,197.64,15.35521966]
[1736314401374,0.12549,197.65,197.64,9.84400709]
[1736314403681,83.0,197.7,197.64,9.84400709]
[1736314403872,2.46,197.69,197.68,9.84400709]
[1736314404061,83.0,197.7,197.68,9.84400709]
[1736314404262,30.0,197.8,197.69,9.84400709]
[1736314404263,83.0,197.76,197.69,9.84400709]
[1736314404471,2.46,197.75,197.72,9.84400709]
[1736314404859,2.46,197.75,197.68,1.6167]
[1736314404860,2.46,197.75,197.73,9.84400709]
[1736314405062,0.12549,197.74,197.73,9.84400709]
[1736314406373,83.0,197.79,197.73,9.84400709]
[1736314406570,83.0,197.82,197.75,9.84400709]
[1736314406770,2.46,197.81,197.78,9.84400709]
[1736314406971,2.46,197.8,197.79,9.84400709]
[1736314407173,2.46,197.81,197.78,9.84400709]
[1736314407368,2.46,197.81,197.78,15.35886976]
[1736314408667,0.12549,197.8,197.78,15.35886976]
[1736314408969,0.12549,197.8,197.76,15.35886976]
[1736314409186,0.12549,197.8,197.74,15.35886976]
[1736314409693,0.12549,197.8,197.76,15.35886976]
[1736314410076,0.12549,197.8,197.74,15.35886976]
[1736314410273,0.12549,197.8,197.69,138.46201607]
[1736314410274,0.12549,197.8,197.72,15.35886976]
[1736314411769,0.12549,197.78,197.7,15.35886976]
[1736314411969,0.12549,197.76,197.69,15.35886976]
[1736314412172,0.12549,197.74,197.67,15.35886976]
[1736314412417,0.12549,197.72,197.65,15.35886976]
[1736314412698,0.12549,197.72,197.66,15.35886976]
[1736314413489,0.12549,197.72,197.67,15.35886976]
[1736314413704,0.12549,197.72,197.66,15.35886976]
[1736314414811,0.12549,197.72,197.65,35.35886976]
[1736314415105,0.12549,197.72,197.66,15.35886976]
[1736314415481,0.12549,197.72,197.67,15.35886976]
[1736314420099,0.12549,197.72,197.66,15.35886976]
[1736314420299,0.12549,197.72,197.65,35.35886976]
[1736314421111,0.12549,197.72,197.66,15.35886976]
[1736314424216,0.12549,197.74,197.66,15.35886976]
[1736314424418,0.12549,197.72,197.66,15.35886976]
[1736314427318,0.12549,197.72,197.66,9.8415037]
[1736314428697,83.12549,197.72,197.66,9.8415037]
[1736314429441,83.12549,197.72,197.67,9.8415037]
[1736314429942,83.0,197.77,197.71,9.8415037]
[1736314430109,85.46,197.76,197.72,9.8415037]
[1736314430417,2.46,197.78,197.74,9.8415037]
[1736314431205,0.12549,197.77,197.74,9.8415037]
[1736314431409,0.12549,197.77,197.74,15.36356023]
[1736314431609,0.12549,197.77,197.75,15.36356023]
[1736314431813,0.12549,197.78,197.76,15.36356023]
[1736314433007,0.12549,197.78,197.75,15.36356023]
[1736314433205,0.12549,197.78,197.74,15.36356023]
[1736314433398,0.12549,197.78,197.71,23.24016023]
[1736314434732,0.12549,197.76,197.71,23.24016023]
[1736314434940,0.12549,197.76,197.71,21.59516023]
[1736314435235,0.12549,197.76,197.7,15.36356023]
[1736314435445,0.12549,197.76,197.72,15.36356023]
[1736314437047,0.12549,197.76,197.68,23.776884]
[1736314437048,0.12549,197.76,197.71,35.36356023]
[1736314440261,83.12549,197.76,197.69,15.36356023]
[1736314440540,83.12549,197.76,197.68,15.36356023]
[1736314440926,83.12549,197.76,197.67,16.91916023]
[1736314441121,30.0,197.75,197.67,16.91916023]
[1736314441334,83.0,197.76,197.67,16.91916023]
[1736314441533,0.12549,197.75,197.67,16.91916023]
[1736314442047,0.12549,197.75,197.66,6.5798]
[1736314442048,0.12549,197.73,197.65,15.36356023]
[1736314442236,0.12549,197.71,197.63,15.36356023]
[1736314442541,0.12549,197.71,197.61,6.4956]
[1736314442743,0.12549,197.71,197.64,15.36356023]
[1736314443051,0.12549,197.71,197.62,15.36356023]
[1736314443432,0.12549,197.71,197.61,21.85916023]
[1736314443630,0.12549,197.69,197.61,15.36356023]
[1736314443831,0.12549,197.69,197.59,15.36356023]
[1736314444038,0.12549,197.67,197.59,15.36356023]
[1736314447358,0.12549,197.67,197.6,15.36356023]
[1736314450057,0.12549,197.69,197.6,15.36356023]
[1736314450441,0.12549,197.65,197.61,15.36356023]
[1736314450756,0.12549,197.63,197.61,15.36356023]
[1736314451953,83.0,197.66,197.62,15.36356023]
[1736314452143,2.46,197.64,197.63,15.36356023]
[1736314453166,2.58549,197.64,197.63,15.36356023]
[1736314453376,0.12549,197.64,197.63,9.84448036]
[1736314453855,2.46,197.67,197.63,9.84448036]
[1736314454036,2.46,197.67,197.66,9.84448036]
[1736314454237,2.58549,197.67,197.66,9.84448036]
[1736314458562,0.12549,197.66,197.64,9.84448036]
[1736314459362,83.9387,197.81,197.68,43.776884]
[1736314459660,2.46,197.79,197.74,9.84448036]
[1736314459957,0.12549,197.78,197.71,9.84448036]
[1736314460154,113.12549,197.78,197.7,9.84448036]
[1736314460839,0.12549,197.75,197.65,8.1523]
[1736314461034,0.12549,197.75,197.68,9.84448036]
[1736314461860,0.12549,197.73,197.59,8.1523]
[1736314462062,0.12549,197.71,197.61,9.84448036]
[1736314462245,0.12549,197.69,197.59,8.1523]
[1736314462444,0.12549,197.69,197.6,9.84448036]
[1736314463249,0.12549,197.69,197.59,8.1523]
[1736314463454,0.12549,197.69,197.6,15.38533611]
[1736314464037,0.12549,197.69,197.59,23.53763611]
[1736314464242,30.12549,197.69,197.6,15.38533611]
[1736314464664,30.12549,197.69,197.61,15.38533611]
[1736314466467,0.12549,197.69,197.63,15.38533611]
[1736314466768,0.12549,197.69,197.64,15.38533611]
[1736314467671,0.12549,197.69,197.63,15.38533611]
[1736314469051,0.12549,197.69,197.64,15.38533611]
[1736314469370,2.46,197.68,197.64,15.38533611]
[1736314470668,0.12549,197.67,197.62,15.38533611]
[1736314471347,0.12549,197.67,197.61,15.38533611]
[1736314472271,0.12549,197.69,197.62,15.38533611]
[1736314472458,0.12549,197.65,197.62,15.38533611]
[1736314473374,0.12549,197.65,197.6,15.38533611]
[1736314473580,0.12549,197.65,197.59,15.38533611]
[1736314474775,0.12549,197.65,197.58,35.38533611]
[1736314474971,0.12549,197.65,197.59,20.0]
[1736314475358,0.12549,197.65,197.59,35.38533611]
[1736314475558,0.12549,197.67,197.59,35.38533611]
[1736314475754,0.12549,197.65,197.59,35.38533611]
[1736314479677,83.12549,197.65,197.59,35.38533611]
[1736314480279,83.12549,197.65,197.58,20.0]
[1736314480465,83.12549,197.65,197.59,15.38533611]
[1736314483293,83.12549,197.65,197.59,9.84769383]
[1736314486175,0.12549,197.59,197.49,15.76359595]
[1736314486488,0.12549,197.57,197.49,25.61128978]
[1736314487289,0.12549,197.57,197.49,17.70289383]
[1736314487475,0.12549,197.57,197.49,16.04789383]
[1736314487664,0.12549,197.57,197.48,9.84769383]
[1736314488685,0.12549,197.57,197.45,1.655]
[1736314488686,0.12549,197.55,197.45,1.655]
[1736314488873,0.12549,197.55,197.44,16.04789383]
[1736314489071,83.12549,197.53,197.46,9.84769383]
[1736314489593,83.12549,197.53,197.47,9.84769383]
[1736314489886,83.12549,197.53,197.46,9.84769383]
[1736314490104,83.0,197.59,197.51,9.84769383]
[1736314490262,85.46,197.58,197.52,9.84769383]
[1736314490470,2.46,197.57,197.53,9.84769383]
[1736314490805,0.12549,197.56,197.44,142.6002]
[1736314490969,0.12549,197.56,197.47,9.84769383]
[1736314491165,0.12549,197.56,197.48,9.84769383]
[1736314491489,0.12549,197.56,197.49,9.84769383]
[1736314491694,0.12549,197.56,197.48,9.84769383]
[1736314491990,0.12549,197.56,197.47,29.84769383]
[1736314492195,0.12549,197.56,197.47,20.0]
[1736314492404,0.12549,197.56,197.47,29.84769383]
[1736314493290,0.12549,197.56,197.47,35.40482961]
[1736314494765,0.12549,197.54,197.44,15.40482961]
[1736314494970,30.12549,197.54,197.43,15.40482961]
[1736314495795,30.12549,197.54,197.44,15.40482961]
[1736314495998,30.12549,197.54,197.46,15.40482961]
[1736314496185,0.12549,197.54,197.46,15.40482961]
[1736314496580,0.12549,197.54,197.45,15.40482961]
[1736314498111,0.12549,197.54,197.44,15.40482961]
[1736314498314,30.12549,197.54,197.43,35.40482961]
[1736314499908,30.12549,197.54,197.43,20.0]
[1736314500410,30.12549,197.54,197.39,15.40482961]
[1736314500411,0.12549,197.5,197.39,15.40482961]
[1736314500588,83.12549,197.48,197.38,15.40482961]
[1736314500792,0.12549,197.46,197.37,15.40482961]
[1736314500989,0.12549,197.46,197.36,1.6088]
[1736314501203,0.12549,197.44,197.34,15.40482961]
[1736314501511,0.12549,197.44,197.36,20.0]
[1736314501908,0.12549,197.44,197.33,15.40482961]
[1736314503025,0.12549,197.42,197.31,17.01362961]
[1736314503210,0.12549,197.4,197.31,1.6088]
[1736314503416,0.12549,197.38,197.29,15.40482961]
[1736314503600,0.12549,197.38,197.31,0.02584336]
[1736314503792,0.12549,197.38,197.28,15.40482961]
[1736314503989,0.12549,197.38,197.29,0.02584336]
[1736314504206,83.12549,197.36,197.29,0.02584336]
[1736314504415,83.12549,197.36,197.25,15.40482961]
[1736314504612,83.12549,197.36,197.27,0.02584336]
[1736314504801,83.12549,197.36,197.25,0.02584336]
[1736314505413,83.12549,197.36,197.25,15.40482961]
[1736314508332,83.12549,197.36,197.24,21.97802961]
[1736314508695,83.12549,197.36,197.24,6.5732]
[1736314510027,83.12549,197.36,197.24,21.97802961]
[1736314511195,83.12549,197.36,197.25,15.40482961]
[1736314511401,2.46,197.35,197.27,15.40482961]
[1736314511620,0.12549,197.34,197.27,20.0]
[1736314512699,0.12549,197.34,197.24,21.97802961]
[1736314512899,0.12549,197.34,197.21,14.2965]
[1736314512900,0.12549,197.34,197.22,15.40482961]
[1736314513610,0.12549,197.3,197.24,20.0]
[1736314513997,0.12549,197.28,197.19,6.2132]
[1736314514198,0.12549,197.26,197.19,21.61802961]
[1736314514517,0.12549,197.26,197.18,15.40482961]
[1736314515201,0.12549,197.26,197.21,20.0]
[1736314515402,0.12549,197.26,197.21,35.40482961]
[1736314515604,0.12549,197.28,197.22,15.40482961]
[1736314515920,0.12549,197.26,197.22,15.40482961]
[1736314516306,83.12549,197.26,197.14,6.0263]
[1736314516497,83.12549,197.26,197.14,21.43112961]
[1736314516915,83.12549,197.26,197.17,20.0]
[1736314517704,83.12549,197.26,197.14,21.43112961]
[1736314519702,0.12549,197.24,197.11,1.5439]
[1736314520008,0.12549,197.21,197.09,15.40482961]
[1736314520214,0.12549,197.19,197.06,1.5375]
[1736314520423,0.12549,197.17,197.06,15.40482961]
[1736314520602,0.12549,197.17,197.09,20.0]
[1736314520806,0.12549,197.17,197.06,15.40482961]
[1736314521008,0.12549,197.17,197.08,20.0]
[1736314521222,0.12549,197.17,197.06,15.40482961]
[1736314521520,0.12549,197.15,197.04,15.40482961]
[1736314521706,0.12549,197.15,197.05,0.05]
[1736314522328,0.12549,197.13,197.05,0.05]
[1736314522528,0.12549,197.11,197.05,0.05]
[1736314525007,0.12549,197.11,197.05,35.40482961]
[1736314525622,0.12549,197.11,197.06,15.40482961]
[1736314525925,0.12549,197.11,197.05,20.0]
[1736314526127,0.12549,197.11,197.04,15.40482961]
[1736314526336,0.12549,197.11,197.05,0.05]
[1736314528226,0.12549,197.11,197.05,20.05]
[1736314528528,0.12549,197.11,197.0,21.45412961]
[1736314528716,0.12549,197.11,197.03,0.05]
[1736314529117,0.12549,197.11,197.03,20.0]
[1736314529513,0.12549,197.11,197.04,0.05]
[1736314529907,0.12549,197.11,197.03,20.0]
[1736314530434,0.12549,197.11,197.01,15.40482961]
[1736314530626,0.12549,197.11,197.01,15.45482961]
[1736314532734,0.12549,197.11,197.01,15.40482961]
[1736314534330,0.12549,197.11,197.02,39.18171361]
[1736314534528,2.46,197.12,197.08,15.40482961]
[1736314534828,0.12549,197.11,196.98,12.6912]
[1736314535034,30.12549,197.11,196.99,15.40482961]
[1736314535408,0.12549,197.08,196.97,17.03282961]
[1736314535614,0.12549,197.06,196.97,15.40482961]
[1736314535810,0.12549,197.04,196.96,15.40482961]
[1736314536110,30.12549,197.04,196.96,0.08678296]
[1736314536311,0.12549,197.01,196.97,0.07810466]
[1736314536528,0.12549,197.01,196.93,15.40482961]
[1736314536830,0.12549,197.01,196.93,15.49161257]
[1736314537830,0.12549,197.01,196.94,15.40482961]
[1736314538048,2.46,197.05,196.97,15.40482961]
[1736314538237,0.12549,197.06,196.99,15.40482961]
[1736314538451,0.12549,197.03,196.99,15.40482961]
[1736314538811,0.12549,197.03,196.98,15.40482961]
[1736314539918,0.12549,197.03,196.97,15.40482961]
[1736314542140,0.12549,197.03,196.96,35.40482961]
[1736314542319,0.12549,197.03,196.97,0.08678296]
[1736314542510,0.12549,197.03,196.94,15.40482961]
[1736314542715,0.12549,197.03,196.94,15.49161257]
[1736314543243,0.12549,197.03,196.95,15.40482961]
[1736314543412,0.12549,197.03,196.96,0.08678296]
[1736314543611,0.12549,197.03,196.95,0.06942636]
[1736314543830,43.776884,197.14,197.11,546.78728774]
[1736314544120,23.776884,197.12,197.11,445.02731279]
[1736314544322,53.776884,197.12,197.11,445.02731279]
[1736314545242,53.776884,197.12,197.11,436.8273128]
[1736314545723,53.902374,197.12,197.11,436.8273128]
[1736314545922,53.902374,197.12,197.11,417.51731281]
[1736314546513,53.902374,197.12,197.11,409.31731282]
[1736314547543,55.99330185,197.12,197.11,409.31731282]
[1736314549521,55.99330185,197.12,197.11,402.35024564]
[1736314551621,55.99330185,197.12,197.11,397.75024564]
[1736314551842,55.99330185,197.12,197.11,396.05024564]
[1736314552143,55.99330185,197.12,197.11,372.59289723]
[1736314553433,30.12549,197.12,197.11,372.59289723]
[1736314553626,0.12549,197.12,197.11,372.59289723]
[1736314553824,2.58549,197.12,197.11,372.59289723]
[1736314554034,2.46,197.12,197.11,372.59289723]
[1736314554627,2.58549,197.12,197.11,372.59289723]
[1736314556027,2.58549,197.12,197.11,377.59289723]
[1736314556340,2.46,197.12,197.11,397.99772684]
[1736314556950,2.58549,197.12,197.11,397.99772684]
[1736314557441,30.0,197.26,197.17,5.0]
[1736314557626,30.0,197.28,197.17,10.0]
[1736314557828,0.12549,197.26,197.18,5.0]
[1736314558147,30.12549,197.26,197.18,5.0]
[1736314558458,20.12549,197.26,197.18,10.0]
[1736314558646,2.46,197.25,197.18,10.0]
[1736314558949,0.12549,197.24,197.18,16.0655]
[1736314559522,0.12549,197.25,197.2,5.0]
[1736314559744,2.46,197.24,197.18,11.0655]
[1736314559958,0.12549,197.23,197.15,5.0]
[1736314560427,0.12549,197.23,197.18,5.0]
[1736314560834,30.0,197.29,197.2,10.0]
[1736314561034,2.46,197.28,197.2,10.0]
[1736314561228,2.46,197.28,197.17,15.40482961]
[1736314561229,53.902374,197.27,197.17,5.0]
[1736314561441,0.12549,197.24,197.17,5.0]
[1736314561643,0.12549,197.24,197.17,10.0]
[1736314561845,0.12549,197.24,197.18,5.0]
[1736314562047,0.12549,197.26,197.18,10.0]
[1736314562238,0.12549,197.26,197.19,10.0]
[1736314562438,0.12549,197.26,197.2,5.0]
[1736314562641,2.46,197.28,197.23,5.0]
[1736314562861,2.46,197.27,197.24,10.0]
[1736314563059,2.46,197.26,197.24,10.0]
[1736314563232,0.12549,197.25,197.24,5.0]
[1736314563429,0.12549,197.25,197.18,10.0]
[1736314563642,0.12549,197.25,197.19,5.0]
[1736314564056,20.12549,197.25,197.18,5.0]
[1736314564233,20.12549,197.25,197.18,10.0]
[1736314564435,0.12549,197.25,197.2,5.0]
[1736314564660,0.12549,197.25,197.22,5.0]
[1736314566376,0.12549,197.25,197.16,13.1433]
[1736314566966,0.12549,197.25,197.18,5.0]
[1736314567759,0.12549,197.25,197.19,10.0]
[1736314568077,0.12549,197.25,197.2,10.0]
[1736314568255,0.12549,197.25,197.2,5.0]
[1736314568652,0.12549,197.25,197.2,10.0]
[1736314569645,0.12549,197.25,197.21,10.0]
[1736314569856,2.46,197.26,197.21,10.0]
[1736314569857,0.12549,197.23,197.22,5.0]
[1736314570052,0.12549,197.23,197.22,10.0]
[1736314570361,30.0,197.35,197.26,5.0]
[1736314570566,2.46,197.34,197.26,5.0]
[1736314570765,0.12549,197.33,197.26,10.0]
[1736314571338,0.12549,197.31,197.25,10.0]
[1736314571556,2.46,197.3,197.26,10.0]
[1736314571759,0.12549,197.28,197.26,10.0]
[1736314572260,0.12549,197.28,197.26,5.0]
[1736314572440,0.12549,197.28,197.27,5.0]
[1736314572641,30.0,197.39,197.28,10.0]
[1736314572985,30.0,197.41,197.31,5.0]
[1736314573263,0.12549,197.37,197.31,10.0]
[1736314573449,0.12549,197.37,197.3,10.0]
[1736314573962,0.12549,197.37,197.29,5.0]
[1736314574565,0.12549,197.35,197.29,10.0]
[1736314574943,0.12549,197.35,197.3,5.0]
[1736314575585,20.0,197.38,197.31,10.0]
[1736314575867,2.46,197.37,197.34,5.0]
[1736314576070,0.12549,197.35,197.34,5.0]
[1736314576363,0.12549,197.35,197.34,10.0]
[1736314576562,13.17026892,197.47,197.41,10.0]
[1736314576754,2.46,197.48,197.44,5.0]
[1736314576949,2.46,197.48,197.47,5.0]
[1736314577253,2.46,197.51,197.48,5.0]
[1736314577566,2.46,197.5,197.44,1.5043]
[1736314577764,0.12549,197.48,197.45,5.0]
[1736314578261,30.0,197.54,197.45,10.0]
[1736314578471,20.0,197.51,197.45,5.0]
[1736314578658,0.12549,197.52,197.45,5.0]
[1736314578843,0.12549,197.5,197.45,10.0]
[1736314579044,0.12549,197.5,197.45,5.0]
[1736314579245,0.12549,197.5,197.44,6.5043]
[1736314579548,0.12549,197.5,197.46,5.0]
[1736314580350,20.0,197.53,197.47,10.0]
[1736314580545,30.0,197.61,197.51,10.0]
[1736314580753,243.31306043,197.78,197.51,10.0]
[1736314580754,2.46,197.6,197.52,5.0]
[1736314581068,2.46,197.59,197.53,5.0]
[1736314581270,2.46,197.58,197.53,10.0]
[1736314581563,0.12549,197.56,197.52,6.6206]
[1736314581746,20.0,197.53,197.46,6.6206]
[1736314581951,0.12549,197.52,197.46,6.6206]
[1736314582149,0.12549,197.48,197.44,1.5043]
[1736314582345,0.12549,197.46,197.41,11.6206]
[1736314582554,0.12549,197.46,197.41,6.6206]
[1736314582954,0.12549,197.44,197.41,6.6206]
[1736314583272,0.12549,197.44,197.42,5.0]
[1736314583670,0.12549,197.44,197.41,6.6206]
[1736314583973,0.12549,197.44,197.41,11.6206]
[1736314584585,0.12549,197.44,197.41,6.6206]
[1736314584887,0.12549,197.42,197.36,6.3047]
[1736314585345,0.12549,197.42,197.33,11.6095]